fUSD/lending_fUSD_20260324
["ID","MTS","AMOUNT","RATE_DAILY","PERIOD"]
[408888914,1774396083504,172.9626,0.00012875,2]
[408888915,1774396099104,200.0,0.00012506,2]
[408888916,1774396164105,-200.0,0.000129,4]
[408888917,1774396164126,-166.66,0.00012975,2]
[408888918,1774396164146,-1200.0,0.00012998,2]
[408888919,1774396164165,-150.0,0.00012998,2]
[408888920,1774396164186,-300.0,0.00012998,2]
[408888921,1774396164206,-18.826362,0.00012999,2]
[408888923,1774396232022,-253.83271447,0.00012998,2]
[408888924,1774396232034,-946.16728553,0.00012998,2]
[408888925,1774396232043,-430.0,0.00012999,2]
[408888926,1774396232053,-430.0,0.00012999,2]
[408888927,1774396232063,-430.0,0.00012999,2]
[408888929,1774396232072,-430.0,0.00012999,2]
[408888930,1774396232081,-430.0,0.00012999,2]
[408888932,1774396232091,-430.0,0.00012999,2]
[408888934,1774396232101,-430.0,0.00012999,2]
[408888935,1774396232111,-430.0,0.00012999,2]
[408888936,1774396232121,-430.0,0.00012999,2]
[408888937,1774396232130,-430.0,0.00012999,2]
[408888938,1774396232144,-430.0,0.00012999,2]
[408888939,1774396232155,-430.0,0.00012999,2]
[408888940,1774396232166,-430.0,0.00012999,2]
[408888941,1774396232177,-430.0,0.00012999,2]
[408888942,1774396232187,-430.0,0.00012999,2]
[408888943,1774396232197,-430.0,0.00012999,2]
[408888944,1774396232207,-430.0,0.00012999,2]
[408888945,1774396232217,-430.0,0.00012999,2]
[408888946,1774396232227,-430.0,0.00012999,2]
[408888947,1774396232237,-430.0,0.00012999,2]
[408888948,1774396232247,-430.0,0.00012999,2]
[408888949,1774396232257,-430.0,0.00012999,2]
[408888950,1774396232267,-430.0,0.00012999,2]
[408888951,1774396232277,-437.98644877,0.00012999,2]
[408888952,1774396232287,-500.0,0.00012999,2]
[408888953,1774396232296,-500.0,0.00012999,2]
[408888954,1774396232306,-500.0,0.00012999,2]
[408888955,1774396232315,-500.0,0.00012999,2]
[408888956,1774396232326,-500.0,0.00012999,2]
[408888957,1774396232335,-500.0,0.00012999,2]
[408888958,1774396232345,-500.0,0.00012999,2]
[408888959,1774396232355,-500.0,0.00012999,2]
[408888960,1774396232366,-500.0,0.00012999,2]
[408888961,1774396232375,-500.0,0.00012999,2]
[408888962,1774396232385,-500.0,0.00012999,2]
[408888963,1774396232395,-500.0,0.00012999,2]
[408888964,1774396232404,-500.0,0.00012999,2]
[408888965,1774396232414,-500.0,0.00012999,2]
[408888966,1774396232424,-500.0,0.00012999,2]
[408888967,1774396232434,-500.0,0.00012999,2]
[408888968,1774396232444,-634.8058204,0.00012999,2]
[408888969,1774396232454,-250.0,0.00013,2]
[408888970,1774396232466,-166.66,0.00013076,2]
[408888971,1774396232476,-316.27171881,0.000131,2]
[408888972,1774396232485,-635.57568126,0.000131,2]
[408888973,1774396232495,-653.05783648,0.000131,2]
[408888974,1774396232505,-581.61707036,0.000131,2]
[408888975,1774396232515,-207.29827715,0.000131,2]
[408888976,1774396232524,-333.41326735,0.000131,2]
[408888977,1774396232534,-300.02255597,0.000131,2]
[408888978,1774396232543,-320.2200966,0.000131,2]
[408888979,1774396232553,-500.0,0.000131,2]
[408888980,1774396232563,-18819.4867533,0.00013189,2]
[408888981,1774396232573,-3881.75979719,0.00013189,2]
[408888982,1774396232583,-19976.57235745,0.0001319,2]
[408888983,1774396232593,-166.66,0.00013227,2]
[408888984,1774396232603,-500.0,0.00013273,2]
[408888985,1774396232612,-500.0,0.00013273,2]
[408888986,1774396232622,-501.02591201,0.00013273,2]
[408888987,1774396232631,-500.0,0.00013273,2]
[408888988,1774396232641,-500.0,0.00013273,2]
[408888989,1774396232650,-500.0,0.00013273,2]
[408888990,1774396232660,-1545.94,0.00013273,2]
[408888991,1774396232670,-227.01405919,0.00013273,2]
[408888992,1774396232680,-500.39228547,0.00013273,2]
[408888993,1774396232689,-160.4120485,0.00013273,2]
[408888994,1774396232699,-500.0,0.00013273,2]
[408888995,1774396232708,-500.0,0.00013273,2]
[408888996,1774396232718,-160.23012086,0.00013273,2]
[408888997,1774396232730,-543.10920901,0.00013273,2]
[408888998,1774396232739,-160.23002364,0.00013273,2]
[408888999,1774396232750,-160.23301826,0.00013273,2]
[408889000,1774396232760,-160.21582819,0.00013273,2]
[408889001,1774396232772,-160.23822493,0.00013273,2]
[408889002,1774396232782,-500.0,0.00013273,2]
[408889003,1774396232791,-160.2302376,0.00013273,2]
[408889004,1774396232801,-500.0,0.00013273,2]
[408889005,1774396232811,-160.22825477,0.00013273,2]
[408889006,1774396232821,-160.23449723,0.00013273,2]
[408889007,1774396232830,-160.21779387,0.00013273,2]
[408889008,1774396232840,-220.33542383,0.00013273,2]
[408889009,1774396232850,-160.23152514,0.00013273,2]
[408889010,1774396232859,-500.0,0.00013273,2]
[408889011,1774396232869,-369.73783683,0.00013273,2]
[408889012,1774396232879,-500.0,0.00013273,2]
[408889013,1774396232888,-500.0,0.00013273,2]
[408889014,1774396232898,-500.0,0.00013273,2]
[408889015,1774396232908,-260.26184628,0.00013273,2]
[408889016,1774396232918,-160.2291337,0.00013273,2]
[408889017,1774396232928,-500.0,0.00013273,2]
[408889018,1774396232938,-500.0,0.00013273,2]
[408889019,1774396232948,-388.60866893,0.00013273,2]
[408889020,1774396232958,-500.13719438,0.00013273,2]
[408889021,1774396232969,-500.15528333,0.00013273,2]
[408889022,1774396232980,-408.78157032,0.00013273,2]
[408889023,1774396232992,-500.0,0.00013273,2]
[408889024,1774396233002,-271.91,0.00013273,2]
[408889025,1774396233011,-500.0,0.00013288,2]
[408889026,1774396233021,-272.15330685,0.00013288,2]
[408889027,1774396233031,-500.0,0.00013288,2]
[408889028,1774396233041,-500.0,0.00013288,2]
[408889029,1774396233053,-500.0,0.00013288,2]
[408889030,1774396233063,-500.0,0.00013288,2]
[408889031,1774396233076,-551.23472532,0.00013288,2]
[408889032,1774396233087,-276.8167788,0.00013288,2]
[408889033,1774396233098,-500.0,0.00013288,2]
[408889034,1774396233107,-157.42138461,0.00013288,2]
[408889035,1774396233117,-491.38472441,0.00013288,2]
[408889036,1774396233126,-529.63154,0.00013288,2]
[408889037,1774396233136,-551.23472532,0.00013288,2]
[408889038,1774396233145,-505.66968415,0.00013288,2]
[408889039,1774396233155,-500.0,0.00013288,2]
[408889040,1774396233164,-551.23472532,0.00013288,2]
[408889041,1774396233173,-551.23472532,0.00013288,2]
[408889042,1774396233183,-551.23472532,0.00013288,2]
[408889043,1774396233192,-551.23472532,0.00013288,2]
[408889044,1774396233202,-551.23472532,0.00013288,2]
[408889045,1774396233212,-551.23472532,0.00013288,2]
[408889046,1774396233221,-551.23472532,0.00013288,2]
[408889047,1774396233231,-551.23472532,0.00013288,2]
[408889048,1774396233240,-551.23472532,0.00013288,2]
[408889049,1774396233250,-551.23472532,0.00013288,2]
[408889050,1774396233262,-551.23472532,0.00013288,2]
[408889051,1774396233272,-551.23472532,0.00013288,2]
[408889052,1774396233283,-551.23472532,0.00013288,2]
[408889053,1774396233293,-551.23472532,0.00013288,2]
[408889054,1774396233305,-551.23472532,0.00013288,2]
[408889055,1774396233316,-551.23472532,0.00013288,2]
[408889056,1774396233325,-551.23472532,0.00013288,2]
[408889057,1774396233335,-551.23472532,0.00013288,2]
[408889058,1774396233344,-551.23472532,0.00013288,2]
[408889059,1774396233354,-551.23472532,0.00013288,2]
[408889060,1774396233364,-551.23472532,0.00013288,2]
[408889061,1774396233375,-551.23472532,0.00013288,2]
[408889062,1774396233385,-551.23472532,0.00013288,2]
[408889063,1774396233395,-551.23472532,0.00013288,2]
[408889064,1774396233406,-551.23472532,0.00013288,2]
[408889065,1774396233416,-551.23472532,0.00013288,2]
[408889066,1774396233425,-551.23472532,0.00013288,2]
[408889067,1774396233436,-551.23472532,0.00013288,2]
[408889068,1774396233445,-551.23472532,0.00013288,2]
[408889069,1774396233459,-551.23472532,0.00013288,2]
[408889070,1774396233470,-551.23472532,0.00013288,2]
[408889071,1774396233479,-551.23472532,0.00013288,2]
[408889072,1774396233489,-551.23472532,0.00013288,2]
[408889073,1774396233499,-551.23472532,0.00013288,2]
[408889074,1774396233509,-551.23472532,0.00013288,2]
[408889075,1774396233518,-551.23472532,0.00013288,2]
[408889076,1774396233528,-551.23472532,0.00013288,2]
[408889077,1774396233537,-551.23472532,0.00013288,2]
[408889078,1774396233546,-551.23472532,0.00013288,2]
[408889079,1774396233555,-551.23472532,0.00013288,2]
[408889080,1774396233566,-551.23472532,0.00013288,2]
[408889081,1774396233577,-551.23472532,0.00013288,2]
[408889082,1774396233587,-551.23472532,0.00013288,2]
[408889083,1774396233596,-551.23472532,0.00013288,2]
[408889084,1774396233606,-551.23472532,0.00013288,2]
[408889085,1774396233616,-551.23472532,0.00013288,2]
[408889086,1774396233625,-551.23472532,0.00013288,2]
[408889087,1774396233635,-551.23472532,0.00013288,2]
[408889088,1774396233648,-551.23472532,0.00013288,2]
[408889089,1774396233658,-551.23472532,0.00013288,2]
[408889090,1774396233667,-1283.11342881,0.00013288,2]
[408889091,1774396233678,-1283.11342881,0.00013288,2]
[408889092,1774396233687,-1283.11342881,0.00013288,2]
[408889093,1774396233697,-1283.11342881,0.00013288,2]
[408889094,1774396233706,-1283.11342881,0.00013288,2]
[408889095,1774396233716,-1283.11342881,0.00013288,2]
[408889096,1774396233726,-1283.11342881,0.00013288,2]
[408889097,1774396233738,-1283.11342881,0.00013288,2]
[408889098,1774396233747,-1283.11342881,0.00013288,2]
[408889099,1774396233758,-1283.11342881,0.00013288,2]
[408889100,1774396233772,-1283.11342881,0.00013288,2]
[408889101,1774396233782,-1283.11342881,0.00013288,2]
[408889102,1774396233793,-1283.11342881,0.00013288,2]
[408889103,1774396233803,-1283.11342881,0.00013288,2]
[408889104,1774396233814,-1283.11342881,0.00013288,2]
[408889105,1774396233824,-1283.11342881,0.00013288,2]
[408889106,1774396233834,-1283.11342881,0.00013288,2]
[408889107,1774396233850,-1283.11342881,0.00013288,2]
[408889108,1774396233860,-1283.11342881,0.00013288,2]
[408889109,1774396233877,-1283.11342881,0.00013288,2]
[408889110,1774396233887,-1283.11342881,0.00013288,2]
[408889111,1774396233896,-1283.11342881,0.00013288,2]
[408889112,1774396233907,-1283.11342881,0.00013288,2]
[408889113,1774396233917,-500.0,0.00013288,2]
[408889114,1774396233929,-500.0,0.00013288,2]
[408889115,1774396233940,-409.9635508,0.00013288,2]
[408889116,1774396233949,-500.0,0.00013288,2]
[408889117,1774396233960,-500.0,0.00013288,2]
[408889118,1774396233974,-150.0,0.00013288,2]
[408889119,1774396233985,-414.05896038,0.00013288,2]
[408889120,1774396233995,-500.0,0.00013288,2]
[408889121,1774396234004,-4999.99,0.00013289,2]
[408889122,1774396234013,-9999.99,0.00013289,2]
[408889123,1774396234023,-9999.99,0.00013289,2]
[408889124,1774396234033,-3672.01,0.00013289,2]
[408889125,1774396234347,-9999.99,0.00013289,2]
[408889126,1774396234358,-2172.81,0.00013289,2]
[408889127,1774396234368,-1189.54,0.00013289,2]
[408889128,1774396234378,-4140.04,0.00013289,2]
[408889129,1774396234388,-1569.1,0.00013289,2]
[408889130,1774396234397,-174043.67882831,0.00013289,2]
[408889133,1774396238033,-4241.59355284,0.00013289,2]
[408889134,1774396238044,-2226.45747354,0.00013289,2]
[408889135,1774396238057,-255.88683056,0.00013289,2]
[408889136,1774396238074,-545.61676731,0.00013289,2]
[408889137,1774396238112,-258.6,0.00013289,2]
[408889138,1774396238124,-383.736,0.00013289,2]
[408889139,1774396238244,-2718.04054744,0.00013289,2]
[408889140,1774396238254,-499.99,0.00013289,2]
[408889141,1774396238264,-526.68810648,0.00013289,2]
[408889142,1774396238275,-473.30189352,0.00013289,2]
[408889143,1774396238284,-141.91358073,0.00013289,2]
[408889144,1774396238295,-4478.04641927,0.00013289,2]
[408889145,1774396238304,-150.99,0.00013289,2]
[408889146,1774396238313,-2151.36358073,0.00013289,2]
[408889147,1774396238324,-713.50810772,0.00013289,2]
[408889148,1774396238336,-255.81419352,0.00013289,2]
[408889157,1774396240756,-10972.34411803,0.00013289,2]
[408889158,1774396240766,-299.99,0.00013289,2]
[408889159,1774396240780,-2114.7,0.00013289,2]
[408889160,1774396240789,-150.99,0.00013289,2]
[408889161,1774396240798,-5218.68,0.00013289,2]
[408889162,1774396240807,-200.0,0.0001329,2]
[408889163,1774396240817,-151.0,0.0001329,2]
[408889164,1774396240827,-151.0,0.0001329,2]
[408889165,1774396240835,-151.0,0.0001329,2]
[408889166,1774396240845,-151.0,0.0001329,2]
[408889167,1774396240855,-151.0,0.0001329,2]
[408889168,1774396240864,-151.0,0.0001329,2]
[408889169,1774396240875,-151.0,0.0001329,2]
[408889171,1774396240886,-151.0,0.0001329,2]
[408889172,1774396240905,-151.0,0.0001329,2]
[408889173,1774396240915,-151.0,0.0001329,2]
[408889174,1774396240926,-151.0,0.0001329,2]
[408889175,1774396240937,-151.0,0.0001329,2]
[408889176,1774396240947,-151.0,0.0001329,2]
[408889177,1774396240958,-151.0,0.0001329,2]
[408889178,1774396240968,-151.0,0.0001329,2]
[408889179,1774396240979,-151.0,0.0001329,2]
[408889180,1774396240991,-151.0,0.0001329,2]
[408889181,1774396241001,-151.0,0.0001329,2]
[408889182,1774396241011,-151.0,0.0001329,2]
[408889183,1774396241021,-151.0,0.0001329,2]
[408889184,1774396241031,-151.0,0.0001329,2]
[408889185,1774396241040,-151.0,0.0001329,2]
[408889186,1774396241051,-151.0,0.0001329,2]
[408889187,1774396241062,-151.0,0.0001329,2]
[408889188,1774396241072,-151.0,0.0001329,2]
[408889189,1774396241083,-151.0,0.0001329,2]
[408889190,1774396241092,-151.0,0.0001329,2]
[408889191,1774396241101,-151.0,0.0001329,2]
[408889192,1774396241111,-151.0,0.0001329,2]
[408889193,1774396241122,-151.0,0.0001329,2]
[408889194,1774396241133,-151.0,0.0001329,2]
[408889195,1774396241142,-24213.1325,0.0001329,2]
[408889196,1774396241154,-1000.0,0.00013389,2]
[408889197,1774396241165,-1929.99775776,0.0001339,2]
[408889198,1774396241175,-941.31452995,0.00013402,2]
[408889199,1774396241184,-3240.0,0.00013425,2]
[408889200,1774396241194,-277.18,0.00013452,2]
[408889201,1774396241203,-435.0,0.00013455,2]
[408889202,1774396241213,-1701.0,0.00013471,2]
[408889203,1774396241222,-174.0,0.00013476,2]
[408889204,1774396241232,-421.0,0.00013482,2]
[408889205,1774396241243,-18819.48675321,0.0001349,2]
[408889206,1774396241253,-19976.57235741,0.00013491,2]
[408889207,1774396241264,-505.0,0.00013498,2]
[408889208,1774396241276,-166.66,0.00013508,2]
[408889209,1774396241287,-401.0,0.00013509,2]
[408889210,1774396241299,-271.91,0.00013547,2]
[408889211,1774396241310,-3881.75979716,0.00013576,2]
[408889212,1774396241321,-150.0,0.000136,2]
[408889213,1774396241330,-500.0,0.00013648,2]
[408889214,1774396241340,-500.0,0.00013698,2]
[408889215,1774396241351,-504.81663731,0.00013698,2]
[408889216,1774396241361,-500.0,0.00013698,2]
[408889217,1774396241370,-500.0,0.00013698,2]
[408889218,1774396241379,-501.50298323,0.00013698,2]
[408889219,1774396241389,-500.0,0.00013698,2]
[408889220,1774396241399,-500.0,0.00013698,2]
[408889221,1774396241409,-500.0,0.00013698,2]
[408889222,1774396241419,-500.0,0.00013698,2]
[408889223,1774396241429,-500.0,0.00013698,2]
[408889224,1774396241440,-500.0,0.00013698,2]
[408889225,1774396241451,-164.50003126,0.00013698,2]
[408889226,1774396241460,-500.0,0.00013698,2]
[408889227,1774396241470,-500.0,0.00013698,2]
[408889228,1774396241481,-500.0,0.00013698,2]
[408889229,1774396241490,-500.0,0.00013698,2]
[408889230,1774396241501,-500.0,0.00013698,2]
[408889231,1774396241510,-500.0,0.00013698,2]
[408889232,1774396241520,-500.0,0.00013698,2]
[408889233,1774396241537,-500.0,0.00013698,2]
[408889234,1774396241548,-500.0,0.00013698,2]
[408889235,1774396241558,-500.0,0.00013698,2]
[408889236,1774396241567,-500.0,0.00013698,2]
[408889237,1774396241577,-503.55073109,0.00013698,2]
[408889238,1774396241587,-500.0,0.00013698,2]
[408889239,1774396241596,-500.0,0.00013698,2]
[408889240,1774396241606,-500.0,0.00013698,2]
[408889241,1774396241615,-500.0,0.00013698,2]
[408889242,1774396241625,-500.0,0.00013698,2]
[408889243,1774396241634,-500.0,0.00013698,2]
[408889244,1774396241643,-500.0,0.00013698,2]
[408889245,1774396241653,-500.0,0.00013698,2]
[408889246,1774396241664,-500.0,0.00013698,2]
[408889247,1774396241675,-500.0,0.00013698,2]
[408889248,1774396241685,-500.0,0.00013698,2]
[408889249,1774396241695,-500.0,0.00013698,2]
[408889250,1774396241704,-500.0,0.00013698,2]
[408889251,1774396241713,-500.0,0.00013698,2]
[408889252,1774396241723,-500.0,0.00013698,2]
[408889253,1774396241732,-500.0,0.00013698,2]
[408889254,1774396241742,-500.0,0.00013698,2]
[408889255,1774396241751,-500.0,0.00013698,2]
[408889256,1774396241760,-500.0,0.00013698,2]
[408889257,1774396241772,-500.0,0.00013698,2]
[408889258,1774396241782,-500.0,0.00013698,2]
[408889259,1774396241792,-500.0,0.00013698,2]
[408889260,1774396241801,-500.0,0.00013698,2]
[408889261,1774396241811,-500.0,0.00013698,2]
[408889262,1774396241820,-500.0,0.00013698,2]
[408889263,1774396241830,-504.51779513,0.00013698,2]
[408889264,1774396241840,-500.0,0.00013698,2]
[408889265,1774396241849,-500.0,0.00013698,2]
[408889266,1774396241859,-500.0,0.00013698,2]
[408889267,1774396241868,-500.0,0.00013698,2]
[408889268,1774396241877,-500.0,0.00013698,2]
[408889269,1774396241887,-500.0,0.00013698,2]
[408889270,1774396241897,-517.60754885,0.00013698,2]
[408889271,1774396241908,-500.0,0.00013698,2]
[408889272,1774396241920,-500.0,0.00013698,2]
[408889273,1774396241932,-500.0,0.00013698,2]
[408889274,1774396241942,-500.0,0.00013698,2]
[408889275,1774396241951,-500.0,0.00013698,2]
[408889276,1774396241961,-500.0,0.00013698,2]
[408889277,1774396241970,-500.0,0.00013698,2]
[408889278,1774396241979,-500.0,0.00013698,2]
[408889279,1774396241989,-500.0,0.00013698,2]
[408889280,1774396241998,-500.0,0.00013698,2]
[408889281,1774396242007,-500.0,0.00013698,2]
[408889282,1774396242017,-500.0,0.00013698,2]
[408889283,1774396242026,-500.0,0.00013698,2]
[408889284,1774396242036,-500.0,0.00013698,2]
[408889285,1774396242045,-500.0,0.00013698,2]
[408889286,1774396242055,-500.0,0.00013698,2]
[408889287,1774396242065,-500.0,0.00013698,2]
[408889288,1774396242074,-500.0,0.00013698,2]
[408889289,1774396242084,-248.51,0.00013698,2]
[408889290,1774396242094,-500.0,0.00013698,2]
[408889291,1774396242104,-500.0,0.00013698,2]
[408889292,1774396242113,-500.0,0.00013698,2]
[408889293,1774396242123,-500.0,0.00013698,2]
[408889294,1774396242132,-500.0,0.00013698,2]
[408889295,1774396242142,-500.0,0.00013698,2]
[408889296,1774396242151,-568.64936411,0.00013698,2]
[408889297,1774396242161,-500.0,0.00013698,2]
[408889298,1774396242171,-500.0,0.00013698,2]
[408889299,1774396242180,-500.0,0.00013698,2]
[408889300,1774396242189,-500.0,0.00013698,2]
[408889301,1774396242198,-500.0,0.00013698,2]
[408889302,1774396242209,-500.0,0.00013698,2]
[408889303,1774396242218,-500.0,0.00013698,2]
[408889304,1774396242228,-500.0,0.00013698,2]
[408889305,1774396242237,-500.0,0.00013698,2]
[408889306,1774396242247,-500.0,0.00013698,2]
[408889307,1774396242256,-200.0,0.00013699,2]
[408889308,1774396242266,-4332.41,0.000137,2]
[408889309,1774396242276,-3657.21,0.000137,2]
[408889310,1774396242285,-1196.91,0.000137,2]
[408889311,1774396242294,-5162.73,0.000137,2]
[408889312,1774396242304,-5162.73,0.000137,2]
[408889313,1774396242314,-5162.73,0.000137,2]
[408889314,1774396242323,-5162.73,0.000137,2]
[408889315,1774396242333,-18819.48675321,0.00013791,2]
[408889316,1774396242343,-19976.57235741,0.00013792,2]
[408889317,1774396242354,-5162.73,0.00013811,2]
[408889318,1774396242363,-1000.0,0.00013821,2]
[408889319,1774396242372,-696.23259882,0.00013821,2]
[408889320,1774396242382,-1000.0,0.00013821,2]
[408889321,1774396242391,-1000.0,0.00013821,2]
[408889322,1774396242401,-1047.78945051,0.00013821,2]
[408889323,1774396242410,-1000.0,0.00013821,2]
[408889324,1774396242419,-1000.0,0.00013821,2]
[408889325,1774396242429,-1000.0,0.00013821,2]
[408889326,1774396242439,-624.88629479,0.00013821,2]
[408889327,1774396242448,-1000.0,0.00013821,2]
[408889328,1774396242458,-1000.0,0.00013821,2]
[408889329,1774396242468,-1000.0,0.00013821,2]
[408889330,1774396242477,-1000.0,0.00013821,2]
[408889331,1774396242486,-500.0,0.00013821,2]
[408889332,1774396242496,-271.91,0.00013821,2]
[408889333,1774396242505,-200.0,0.00013838,2]
[408889334,1774396242515,-151.0,0.00013886,2]
[408889335,1774396242524,-153.0,0.00013886,2]
[408889336,1774396242534,-1156.18765872,0.00013886,2]
[408889337,1774396242543,-151.0,0.00013886,2]
[408889338,1774396242553,-151.0,0.00013886,2]
[408889339,1774396242563,-151.0,0.00013886,2]
[408889340,1774396242573,-180.65887883,0.00013886,2]
[408889341,1774396242582,-152.0,0.00013886,2]
[408889342,1774396242592,-152.00267227,0.00013886,2]
[408889343,1774396242603,-500.0,0.000139,5]
[408889344,1774396242613,-500.0,0.00013922,2]
[408889345,1774396242622,-166.66,0.00013939,2]
[408889346,1774396242632,-462.01,0.00013968,2]
[408889347,1774396242642,-261.88,0.00013968,2]
[408889348,1774396242652,-507.0,0.00014,2]
[408889349,1774396242661,-700.0,0.00014082,2]
[408889350,1774396242671,-18819.48675321,0.00014093,2]
[408889351,1774396242680,-19976.57235741,0.00014093,2]
[408889352,1774396242690,-271.91,0.00014095,2]
[408889353,1774396242699,-255.0,0.00014103,2]
[408889354,1774396242709,-277.18,0.0001416,2]
[408889355,1774396242719,-500.0,0.00014196,2]
[408889356,1774396242729,-500.0,0.00014224,2]
[408889357,1774396242739,-372.61,0.00014224,2]
[408889358,1774396242749,-12732.07,0.00014266,2]
[408889359,1774396242758,-150.28010704,0.00014272,2]
[408889360,1774396242768,-193.0,0.00014298,2]
[408889361,1774396242782,-5000.0,0.00014298,2]
[408889362,1774396242792,-1680.0,0.00014298,2]
[408889363,1774396242801,-1400.0,0.00014356,2]
[408889364,1774396242811,-271.91502245,0.00014368,2]
[408889365,1774396242821,-620.68561883,0.00014368,2]
[408889366,1774396242831,-1500.0,0.00014368,2]
[408889367,1774396242840,-546.25965825,0.00014368,2]
[408889368,1774396242853,-1501.78785805,0.00014368,2]
[408889369,1774396242862,-508.47953738,0.00014368,2]
[408889370,1774396242872,-1500.0,0.00014368,2]
[408889371,1774396242881,-1500.0,0.00014368,2]
[408889372,1774396242891,-1500.0,0.00014368,2]
[408889373,1774396242900,-1500.0,0.00014368,2]
[408889374,1774396242909,-166.66,0.00014371,2]
[408889376,1774396242919,-278.58649917,0.00014386,2]
[408889377,1774396242929,-18819.48675321,0.00014394,2]
[408889378,1774396242938,-19976.57235741,0.00014394,2]
[408889379,1774396242948,-1569.0,0.000144,2]
[408889380,1774396242958,-1569.0,0.000144,2]
[408889381,1774396242967,-439.0,0.00014411,2]
[408889382,1774396242976,-1600.0,0.00014439,2]
[408889384,1774396242986,-500.0,0.0001447,2]
[408889386,1774396242995,-1893.66,0.00014528,2]
[408889387,1774396243005,-206.36296868,0.00014617,2]
[408889388,1774396243014,-5000.0,0.00014681,2]
[408889389,1774396243024,-500.0,0.00014695,2]
[408889390,1774396243033,-500.0,0.00014695,2]
[408889391,1774396243043,-349.22617875,0.00014695,2]
[408889392,1774396243053,-500.0,0.00014695,2]
[408889393,1774396243063,-536.64515311,0.00014695,2]
[408889394,1774396243073,-368.83334185,0.00014695,2]
[408889395,1774396243082,-18819.48675321,0.00014695,2]
[408889396,1774396243092,-19976.57235741,0.00014696,2]
[408889397,1774396243101,-2804.0,0.0001472,2]
[408889398,1774396243110,-161.0,0.0001472,2]
[408889399,1774396243120,-500.0,0.00014744,2]
[408889400,1774396243129,-784.01,0.00014762,2]
[408889401,1774396243139,-166.66,0.00014803,2]
[408889402,1774396243149,-500.0,0.00014833,2]
[408889403,1774396243158,-500.0,0.00014833,2]
[408889404,1774396243167,-500.0,0.00014849,2]
[408889405,1774396243177,-277.18,0.00014868,2]
[408889406,1774396243186,-160.0,0.00014895,7]
[408889407,1774396243196,-201.637856,0.00014895,7]
[408889408,1774396243205,-243.275712,0.00014895,7]
[408889409,1774396243214,-160.0,0.00014895,7]
[408889410,1774396243224,-194.285343,0.00014895,7]
[408889411,1774396243233,-228.570686,0.00014895,7]
[408889412,1774396243243,-197.2191,0.000149,2]
[408889413,1774396243252,-344.15677785,0.000149,2]
[408889414,1774396243261,-2000.0,0.00014916,2]
[408889415,1774396243270,-2140.68316587,0.00014916,2]
[408889416,1774396243279,-2000.0,0.00014916,2]
[408889417,1774396243289,-2000.0,0.00014916,2]
[408889418,1774396243298,-18819.48675321,0.00014996,2]
[408889419,1774396243308,-19976.57235741,0.00014997,2]
[408889420,1774396243317,-300.0,0.00015,2]
[408889421,1774396243327,-500.0,0.00015,2]
[408889422,1774396243336,-500.0,0.00015,2]
[408889423,1774396243345,-500.0,0.00015,2]
[408889424,1774396243354,-500.0,0.00015,2]
[408889425,1774396243363,-500.0,0.00015,2]
[408889426,1774396243373,-500.0,0.00015,2]
[408889427,1774396243382,-500.0,0.00015,2]
[408889428,1774396243391,-500.0,0.00015,2]
[408889429,1774396243400,-500.0,0.00015,2]
[408889430,1774396243409,-500.0,0.00015,2]
[408889431,1774396243418,-500.0,0.00015,2]